lending/lending_fUSD_20260328
["ID","MTS","AMOUNT","RATE_DAILY","PERIOD"]
[418988000,1774713064903,-913.945606,0.00027397,2]
[418988001,1774713064922,-913.945606,0.00027397,2]
[418988002,1774713064940,-913.945606,0.00027397,2]
[418988003,1774713064956,-913.945606,0.00027397,2]
[418988004,1774713064973,-913.945606,0.00027397,2]
[418988005,1774713064989,-913.945606,0.00027397,2]
[418988006,1774713065004,-913.945606,0.00027397,2]
[418988007,1774713065020,-913.945606,0.00027397,2]
[418988008,1774713065036,-977.716527,0.00027397,2]
[418988009,1774713065052,-977.716527,0.00027397,2]
[418988010,1774713065067,-977.716527,0.00027397,2]
[418988011,1774713065082,-977.716527,0.00027397,2]
[418988012,1774713065102,-977.716527,0.00027397,2]
[418988013,1774713065118,-977.716527,0.00027397,2]
[418988014,1774713065135,-977.716527,0.00027397,2]
[418988015,1774713065150,-977.716527,0.00027397,2]
[418988016,1774713065165,-977.716527,0.00027397,2]
[418988017,1774713065180,-2005.676861,0.00027397,2]
[418988018,1774713065194,-2005.676861,0.00027397,2]
[418988019,1774713065209,-977.716527,0.00027397,2]
[418988020,1774713065224,-977.716527,0.00027397,2]
[418988021,1774713065239,-977.716527,0.00027397,2]
[418988022,1774713065254,-2005.676861,0.00027397,2]
[418988023,1774713065269,-2005.676861,0.00027397,2]
[418988024,1774713065285,-2005.676861,0.00027397,2]
[418988025,1774713065301,-2005.676861,0.00027397,2]
[418988026,1774713065318,-2005.676861,0.00027397,2]
[418988027,1774713065333,-2005.676861,0.00027397,2]
[418988028,1774713065348,-506.28855,0.00027397,2]
[418988029,1774713065363,-506.28855,0.00027397,2]
[418988030,1774713065379,-820.618562,0.00027397,2]
[418988031,1774713065394,-820.618562,0.00027397,2]
[418988032,1774713065410,-506.28855,0.00027397,2]
[418988033,1774713065426,-506.28855,0.00027397,2]
[418988034,1774713065558,-820.618562,0.00027397,2]
[418988035,1774713065568,-56386.75,0.00027397,10]
[418988036,1774713065577,-200.0,0.00027397,2]
[418988037,1774713065586,-161.11126088,0.00027397,5]
[418988038,1774713065596,-150.0,0.00027397,5]
[418988039,1774713065605,-202.71352242,0.000275,2]
[418988040,1774713065615,-553.68151608,0.000275,2]
[418988041,1774713065624,-1000.0,0.000275,7]
[418988042,1774713065634,-320.0,0.00027654,120]
[418988043,1774713065643,-994.07,0.00027753,2]
[418988044,1774713065653,-500.0,0.00027781,2]
[418988045,1774713065662,-617.34,0.000278,7]
[418988046,1774713065671,-1339.61,0.0002783,2]
[418988047,1774713065680,-787.60261,0.000279,2]
[418988048,1774713065690,-250.0,0.00027945,5]
[418988049,1774713065699,-1641.12,0.00027972,2]
[418988050,1774713065709,-51235.47014333,0.00028,2]
[418988051,1774713065718,-160.0,0.00028,2]
[418988052,1774713065728,-643.0,0.00028,2]
[418988053,1774713065738,-2218.1,0.00028,7]
[418988054,1774713065748,-151.0,0.00028,7]
[418988055,1774713065758,-151.0,0.00028,7]
[418988056,1774713065768,-270.037887,0.00028,7]
[418988057,1774713065778,-207.98764,0.00028,7]
[418988058,1774713065788,-207.98764,0.00028,7]
[418988059,1774713065797,-207.98764,0.00028,7]
[418988060,1774713065807,-207.98764,0.00028,7]
[418988061,1774713065817,-151.0,0.00028,7]
[418988062,1774713065826,-151.0,0.00028,7]
[418988063,1774713065836,-959.64475997,0.00028,10]
[418988064,1774713065846,-564.07798851,0.00028,5]
[418988065,1774713065856,-3606.94,0.000281,7]
[418988066,1774713065865,-150.0,0.00028203,30]
[418988067,1774713065874,-233.7,0.00028493,2]
[418988068,1774713065884,-350.0,0.00028493,5]
[418988069,1774713065895,-4733.12,0.000285,7]
[418988070,1774713065905,-3901.0689,0.000285,2]
[418988071,1774713065914,-150.0,0.00028544,2]
[418988072,1774713065924,-2810.71,0.000287,7]
[418988073,1774713065934,-16717.74,0.000287,2]
[418988074,1774713065943,-250.0,0.00028724,2]
[418988075,1774713065952,-250.0,0.00028767,120]
[418988076,1774713065962,-373.0,0.00028767,120]
[418988077,1774713065972,-2500.0,0.00028767,2]
[418988078,1774713065981,-959.64475997,0.000288,10]
[418988079,1774713065990,-1754.04703919,0.00029,2]
[418988080,1774713066000,-506.16438707,0.00029,2]
[418988081,1774713066009,-650.0,0.00029,2]
[418988082,1774713066019,-167.0,0.00029,3]
[418988083,1774713066029,-167.0,0.00029,3]
[418988084,1774713066038,-167.0,0.00029,3]
[418988085,1774713066047,-3179.0,0.00029,2]
[418988086,1774713066057,-151.0,0.00029,7]
[418988087,1774713066066,-291.598274,0.00029,7]
[418988088,1774713066076,-166.0,0.00029,3]
[418988089,1774713066086,-152.0,0.00029,3]
[418988090,1774713066095,-1523.0,0.00029,3]
[418988091,1774713066105,-227.40820668,0.00029,3]
[418988092,1774713066115,-166.0,0.00029,3]
[418988093,1774713066126,-1523.0,0.00029,3]
[418988094,1774713066136,-152.0,0.00029,3]
[418988095,1774713066146,-167.0,0.00029,3]
[418988096,1774713066156,-166.0,0.00029,3]
[418988097,1774713066166,-1523.0,0.00029,3]
[418988098,1774713066175,-152.0,0.00029,3]
[418988099,1774713066185,-167.0,0.00029,3]
[418988100,1774713066194,-166.0,0.00029,3]
[418988101,1774713066204,-1523.0,0.00029,3]
[418988102,1774713066215,-167.0,0.00029,3]
[418988103,1774713066224,-152.0,0.00029,3]
[418988104,1774713066234,-166.0,0.00029,3]
[418988105,1774713066244,-167.0,0.00029,3]
[418988106,1774713066253,-1523.0,0.00029,3]
[418988107,1774713066263,-152.0,0.00029,3]
[418988108,1774713066272,-166.0,0.00029,3]
[418988109,1774713066282,-182.88297656,0.00029,3]
[418988110,1774713066292,-1523.0,0.00029,3]
[418988111,1774713066301,-152.0,0.00029,3]
[418988112,1774713066311,-166.0,0.00029,3]
[418988113,1774713066320,-1523.0,0.00029,3]
[418988114,1774713066330,-152.0,0.00029,3]
[418988115,1774713066340,-166.0,0.00029,3]
[418988116,1774713066350,-1523.0,0.00029,3]
[418988117,1774713066360,-152.0,0.00029,3]
[418988118,1774713066369,-172.0,0.00029,3]
[418988119,1774713066379,-1523.0,0.00029,3]
[418988120,1774713066388,-152.0,0.00029,3]
[418988121,1774713066397,-1523.0,0.00029,3]
[418988122,1774713066407,-1523.0,0.00029,3]
[418988123,1774713066417,-152.0,0.00029,3]
[418988124,1774713066427,-152.0,0.00029,3]
[418988125,1774713066436,-1523.0,0.00029,3]
[418988126,1774713066446,-152.0,0.00029,3]
[418988127,1774713066455,-1523.0,0.00029,3]
[418988128,1774713066464,-152.0,0.00029,3]
[418988129,1774713066474,-1523.0,0.00029,3]
[418988130,1774713066485,-223.75047066,0.00029,3]
[418988131,1774713066495,-1523.0,0.00029,3]
[418988132,1774713066504,-152.0,0.00029,3]
[418988133,1774713066513,-1523.0,0.00029,3]
[418988134,1774713066523,-152.0,0.00029,3]
[418988135,1774713066532,-1523.0,0.00029,3]
[418988136,1774713066542,-1523.0,0.00029,3]
[418988137,1774713066551,-152.0,0.00029,3]
[418988138,1774713066560,-1523.0,0.00029,3]
[418988139,1774713066570,-152.0,0.00029,3]
[418988140,1774713066580,-1523.0,0.00029,3]
[418988141,1774713066591,-292.0,0.00029,3]
[418988142,1774713066600,-1523.0,0.00029,3]
[418988143,1774713066611,-1523.0,0.00029,3]
[418988144,1774713066621,-1523.0,0.00029,3]
[418988145,1774713066630,-1523.0,0.00029,3]
[418988146,1774713066640,-1523.0,0.00029,3]
[418988147,1774713066651,-1523.0,0.00029,3]
[418988148,1774713066661,-1523.0,0.00029,3]
[418988149,1774713066670,-1241.76979848,0.00029,3]
[418988150,1774713066680,-959.64475997,0.00029,3]
[418988151,1774713066690,-320.0,0.00029037,120]
[418988152,1774713066701,-450.0,0.00029041,5]
[418988153,1774713066711,-254.38584548,0.00029041,120]
[418988154,1774713066721,-7348.0,0.00029086,2]
[418988155,1774713066731,-960.18,0.00029443,2]
[418988156,1774713066741,-400.0,0.00029448,120]
[418988157,1774713066750,-150.0,0.00029522,30]
[418988158,1774713066761,-517.0,0.00029529,15]
[418988159,1774713066772,-403.77241034,0.00029554,7]
[418988160,1774713066783,-550.0,0.00029589,5]
[418988161,1774713066793,-5118.0908,0.000297,2]
[418988162,1774713066803,-151.0,0.00029896,7]
[418988163,1774713066814,-152.655674,0.00029899,7]
[418988164,1774713066824,-79546.64531557,0.000299,2]
[418988165,1774713066835,-150.0,0.00029971,2]
[418988166,1774713066845,-500.0,0.0002998,2]
[418988167,1774713066858,-500.0,0.0002998,2]
[418988168,1774713066867,-392.0,0.0002998,2]
[418988169,1774713066878,-239.20697138,0.0002999,2]
[418988170,1774713066887,-1339.61,0.00029993,2]
[418988171,1774713066897,-151.0,0.00029997,7]
[418988172,1774713066907,-151.0,0.00029997,7]
[418988173,1774713066917,-118009.07847239,0.0003,5]
[418988174,1774713066926,-10000.0,0.0003,10]
[418988175,1774713066936,-18604.69093851,0.0003,2]
[418988176,1774713066946,-9500.0,0.0003,3]
[418988177,1774713066956,-20035.74772119,0.0003,2]
[418988178,1774713066966,-74445.31261566,0.0003,10]
[418988179,1774713066976,-49722.80029968,0.0003,2]
[418988180,1774713066985,-321.97553684,0.0003,2]
[418988181,1774713066994,-1833.16270133,0.0003,2]
[418988182,1774713067004,-581.3261246,0.0003,4]
[418988183,1774713067014,-3315.35330489,0.0003,10]
[418988184,1774713067024,-164.40024404,0.0003,2]
[418988185,1774713067033,-1005.7045591,0.0003,2]
[418988186,1774713067042,-150.0,0.0003,2]
[418988187,1774713067052,-959.64475997,0.0003,10]
[418988188,1774713067061,-1750.0,0.00030097,2]
[418988189,1774713067071,-1750.0,0.00030097,2]
[418988190,1774713067080,-1736.0,0.00030097,2]
[418988191,1774713067090,-617.34,0.000301,7]
[418988192,1774713067102,-1082.92226376,0.0003013,2]
[418988193,1774713067111,-13970.23633983,0.0003013,2]
[418988194,1774713067121,-639.58796766,0.0003013,2]
[418988195,1774713067131,-203.46887147,0.0003013,2]
[418988196,1774713067141,-7797.31322988,0.0003013,2]
[418988197,1774713067151,-151.29988624,0.00030136,20]
[418988198,1774713067160,-876.59,0.00030137,2]
[418988199,1774713067169,-196.184062,0.00030137,7]
[418988200,1774713067180,-196.184062,0.00030137,7]
[418988201,1774713067190,-196.184062,0.00030137,7]
[418988202,1774713067199,-196.184062,0.00030137,7]
[418988203,1774713067209,-196.184062,0.00030137,7]
[418988204,1774713067220,-196.184062,0.00030137,7]
[418988205,1774713067230,-196.184062,0.00030137,7]
[418988206,1774713067322,-196.184062,0.00030137,7]
[418988207,1774713067345,-345.06921655,0.00030137,5]
[418988208,1774713067355,-250.53218267,0.00030137,2]
[418988209,1774713067365,-250.0,0.00030166,2]
[418988210,1774713067374,-15668.44686209,0.000302,2]
[418988211,1774713067384,-161.336518,0.000302,7]
[418988212,1774713067393,-161.336518,0.000302,7]
[418988213,1774713067403,-161.336518,0.000302,7]
[418988214,1774713067412,-161.336518,0.000302,7]
[418988215,1774713067421,-151.0,0.000302,7]
[418988216,1774713067431,-547.12046,0.000302,7]
[418988217,1774713067441,-547.12046,0.000302,7]
[418988218,1774713067450,-547.12046,0.000302,7]
[418988219,1774713067460,-547.12046,0.000302,7]
[418988220,1774713067469,-913.945606,0.000302,7]
[418988221,1774713067479,-913.945606,0.000302,7]
[418988222,1774713067489,-913.945606,0.000302,7]
[418988223,1774713067498,-913.945606,0.000302,7]
[418988224,1774713067508,-3849.0,0.000302,2]
[418988225,1774713067518,-9246.34195058,0.000302,2]
[418988226,1774713067527,-9246.34195058,0.000302,2]
[418988227,1774713067536,-9246.34195058,0.000302,2]
[418988228,1774713067546,-9246.34195058,0.000302,2]
[418988229,1774713067557,-500.0,0.00030203,2]
[418988230,1774713067568,-500.0,0.00030203,2]
[418988231,1774713067577,-385.0,0.00030203,2]
[418988232,1774713067588,-2000.0,0.000303,2]
[418988233,1774713067599,-151.0,0.000303,7]
[418988234,1774713067608,-151.0,0.000303,7]
[418988235,1774713067619,-151.0,0.000303,7]
[418988236,1774713067629,-151.0,0.000303,7]
[418988237,1774713067639,-151.0,0.000303,7]
[418988238,1774713067650,-2218.1,0.000303,7]
[418988239,1774713067659,-13566.7259,0.00030315,2]
[418988240,1774713067670,-621.0,0.00030385,2]
[418988241,1774713067680,-1262.0,0.00030385,2]
[418988242,1774713067691,-415.0,0.00030385,2]
[418988243,1774713067700,-176.19966253,0.000304,5]
[418988244,1774713067710,-1850.0,0.00030433,2]
[418988245,1774713067721,-1850.0,0.00030433,2]
[418988246,1774713067730,-1826.0,0.00030433,2]
[418988247,1774713067741,-1800.0,0.00030466,2]
[418988248,1774713067750,-1800.0,0.00030466,2]
[418988249,1774713067759,-1671.0,0.00030466,2]
[418988250,1774713067769,-320.0,0.00030489,120]
[418988251,1774713067778,-3606.94,0.000305,7]
[418988252,1774713067788,-800.0,0.0003057,30]
[418988253,1774713067797,-800.0,0.0003057,30]
[418988254,1774713067807,-738.0,0.0003057,30]
[418988255,1774713067818,-490.02874953,0.0003061,4]
[418988256,1774713067827,-2810.71,0.000308,7]
[418988257,1774713067837,-4733.12,0.000308,7]
[418988258,1774713067847,-1622.89198187,0.0003084,2]
[418988259,1774713067857,-152.74,0.00030841,30]
[418988260,1774713067867,-352.9585639,0.000309,2]
[418988261,1774713067876,-400.0,0.00030921,120]
[418988262,1774713067887,-163.98,0.00030948,2]
[418988263,1774713067898,-346.84412193,0.00031,5]
[418988264,1774713067909,-52006.93868616,0.00031,2]
[418988265,1774713067919,-7893.49573327,0.00031,20]
[418988266,1774713067928,-700.0,0.00031,2]
[418988267,1774713067938,-6714.7887,0.00031,2]
[418988268,1774713067947,-16717.74,0.00031,2]
[418988269,1774713067957,-151.0,0.00031,7]
[418988270,1774713067966,-151.0,0.00031,7]
[418988271,1774713067975,-151.0,0.00031,7]
[418988272,1774713067985,-739.189272,0.00031,7]
[418988273,1774713067995,-739.189272,0.00031,7]
[418988274,1774713068005,-739.189272,0.00031,7]
[418988275,1774713068014,-739.189272,0.00031,7]
[418988276,1774713068024,-1837.713949,0.00031,7]
[418988277,1774713068033,-1837.713949,0.00031,7]
[418988278,1774713068044,-170.706749,0.00031,7]
[418988279,1774713068053,-1837.713949,0.00031,7]
[418988280,1774713068063,-170.706749,0.00031,7]
[418988281,1774713068073,-1837.713949,0.00031,7]
[418988282,1774713068082,-170.706749,0.00031,7]
[418988283,1774713068092,-170.706749,0.00031,7]
[418988284,1774713068102,-9245.710185,0.00031,7]
[418988285,1774713068112,-9245.710185,0.00031,7]
[418988286,1774713068122,-9245.710185,0.00031,7]
[418988287,1774713068131,-9245.710185,0.00031,7]
[418988288,1774713068141,-151.0,0.00031,7]
[418988289,1774713068150,-151.0,0.00031,7]
[418988290,1774713068160,-188.291554,0.00031,7]
[418988291,1774713068170,-188.291554,0.00031,7]
[418988292,1774713068180,-188.291554,0.00031,7]
[418988293,1774713068189,-188.291554,0.00031,7]
[418988294,1774713068198,-926.29,0.00031373,2]
[418988295,1774713068208,-500.0,0.0003141,2]
[418988296,1774713068219,-500.0,0.0003141,2]
[418988297,1774713068229,-389.0,0.0003141,2]
[418988298,1774713068238,-19977.69944669,0.0003143,4]
[418988299,1774713068248,-150.0,0.0003147,2]
[418988300,1774713068258,-199.08842263,0.000315,2]
[418988301,1774713068268,-150.0,0.000315,2]
[418988302,1774713068278,-388.0,0.00031507,2]
[418988303,1774713068287,-250.0,0.00031608,2]
[418988304,1774713068297,-964.12342806,0.00031746,74]
[418988305,1774713068306,-152.0,0.00031784,3]
[418988306,1774713068315,-171.83,0.00031793,30]
[418988307,1774713068325,-320.0,0.00032013,120]
[418988308,1774713068335,-1339.61,0.00032156,2]
[418988309,1774713068345,-902.09897535,0.000323,2]
[418988310,1774713068355,-8809.6107,0.000323,2]
[418988311,1774713068365,-764.88,0.00032441,2]
[418988312,1774713068374,-500.0,0.00032539,120]
[418988313,1774713068384,-4874.07505453,0.000328,2]
[418988314,1774713068393,-1738.13086741,0.0003287,4]
[418988315,1774713068403,-1000.0,0.00032876,2]
[418988316,1774713068412,-1000.0,0.00032876,2]
[418988317,1774713068421,-1000.0,0.00032876,2]
[418988318,1774713068430,-1000.0,0.00032876,2]
[418988319,1774713068440,-1000.0,0.00032876,2]
[418988320,1774713068449,-1000.000001,0.00032876,2]
[418988321,1774713068459,-250.0,0.00032877,120]
[418988322,1774713068468,-373.0,0.00032877,120]
[418988323,1774713068478,-347.79,0.00032877,2]
[418988324,1774713068487,-876.59,0.00032877,2]
[418988325,1774713068496,-481.367725,0.00032877,7]
[418988326,1774713068506,-481.367725,0.00032877,7]
[418988327,1774713068515,-481.367725,0.00032877,7]
[418988328,1774713068524,-481.367725,0.00032877,7]
[418988329,1774713068533,-481.367725,0.00032877,7]
[418988330,1774713068542,-481.367725,0.00032877,7]
[418988331,1774713068552,-481.367725,0.00032877,7]
[418988332,1774713068561,-481.367725,0.00032877,7]
[418988333,1774713068570,-481.367725,0.00032877,7]
[418988334,1774713068579,-481.367725,0.00032877,7]
[418988335,1774713068589,-481.367725,0.00032877,7]
[418988336,1774713068599,-481.367725,0.00032877,7]
[418988337,1774713068609,-481.367725,0.00032877,7]
[418988338,1774713068619,-481.367725,0.00032877,7]
[418988339,1774713068629,-481.367725,0.00032877,7]
[418988340,1774713068639,-481.367725,0.00032877,7]
[418988341,1774713068650,-151.0,0.00032877,7]
[418988342,1774713068660,-184.919576,0.00032877,7]
[418988343,1774713068669,-500.0,0.00032877,2]
[418988344,1774713068679,-500.0,0.00032877,2]
[418988345,1774713068689,-500.0,0.00032877,2]
[418988346,1774713068699,-500.0,0.00032877,2]
[418988347,1774713068708,-500.0,0.00032877,2]
[418988348,1774713068718,-500.0,0.00032877,2]
[418988349,1774713068728,-390.31867838,0.00032877,2]
[418988350,1774713068737,-150.0,0.00032877,5]
[418988351,1774713068747,-150.0,0.00032877,2]
[418988352,1774713068757,-150.0,0.00032877,2]
[418988353,1774713068766,-150.0,0.00032877,2]
[418988354,1774713068776,-150.0,0.00032877,2]
[418988355,1774713068786,-234.24382637,0.00032877,2]
[418988356,1774713068796,-5504.66492098,0.000329,2]
[418988357,1774713068805,-152.0,0.0003292,4]
[418988358,1774713068815,-353.86531261,0.00032982,2]
[418988359,1774713068824,-565.832793,0.00033,14]
[418988360,1774713068834,-447497.28,0.00033,7]
[418988361,1774713068844,-51765.31709129,0.00033,2]
[418988362,1774713068854,-26618.80774554,0.00033,2]
[418988363,1774713068864,-339.436127,0.00033,7]
[418988364,1774713068875,-339.436127,0.00033,7]
[418988365,1774713068971,-339.436127,0.00033,7]
[418988366,1774713068982,-339.436127,0.00033,7]
[418988367,1774713068992,-977.716527,0.00033,7]
[418988368,1774713069002,-977.716527,0.00033,7]
[418988369,1774713069012,-606.320897,0.00033,7]
[418988370,1774713069022,-977.716527,0.00033,7]
[418988371,1774713069033,-2005.676861,0.00033,7]
[418988372,1774713069043,-606.320897,0.00033,7]
[418988373,1774713069053,-977.716527,0.00033,7]
[418988374,1774713069063,-2005.676861,0.00033,7]
[418988375,1774713069073,-606.320897,0.00033,7]
[418988376,1774713069082,-151.0,0.00033,7]
[418988377,1774713069092,-2005.676861,0.00033,7]
[418988378,1774713069103,-606.320897,0.00033,7]
[418988379,1774713069112,-2005.676861,0.00033,7]
[418988380,1774713069122,-151.0,0.00033,7]
[418988381,1774713069132,-151.0,0.00033,7]
[418988382,1774713069142,-266.924629,0.00033,7]
[418988383,1774713069152,-151.0,0.00033,7]
[418988384,1774713069162,-151.0,0.00033,7]
[418988385,1774713069171,-214.467685,0.00033,7]
[418988386,1774713069181,-151.0,0.00033,7]
[418988387,1774713069191,-214.467685,0.00033,7]
[418988388,1774713069200,-214.467685,0.00033,7]
[418988389,1774713069211,-151.0,0.00033,7]
[418988390,1774713069222,-506.28855,0.00033,7]
[418988391,1774713069231,-214.467685,0.00033,7]
[418988392,1774713069241,-820.618562,0.00033,7]
[418988393,1774713069250,-203.859965,0.00033,7]
[418988394,1774713069260,-506.28855,0.00033,7]
[418988395,1774713069270,-150.0,0.00033043,2]
[418988396,1774713069279,-250.0,0.0003305,2]
[418988397,1774713069288,-3869.52069833,0.00033376,2]
[418988398,1774713069298,-621.0,0.00033385,2]
[418988399,1774713069308,-1262.0,0.00033385,2]
[418988400,1774713069318,-415.0,0.00033385,2]
[418988401,1774713069328,-517.0,0.00033412,19]
[418988402,1774713069338,-250.0,0.00033425,5]
[418988403,1774713069349,-1222.70187551,0.000335,2]
[418988404,1774713069359,-11557.9572,0.000335,2]
[418988405,1774713069369,-182.803556,0.000335,7]
[418988406,1774713069379,-182.803556,0.000335,7]
[418988407,1774713069388,-182.803556,0.000335,7]
[418988408,1774713069398,-182.803556,0.000335,7]
[418988409,1774713069407,-320.0,0.00033614,120]
[418988410,1774713069417,-200.0,0.00033892,2]
[418988411,1774713069426,-350.0,0.00033973,5]
[418988412,1774713069436,-14167.14032678,0.00034,4]
[418988413,1774713069447,-2000.0,0.00034,2]
[418988414,1774713069456,-152.0,0.00034057,5]
[418988415,1774713069466,-81712.85714165,0.0003406,2]
[418988416,1774713069476,-1590.08,0.00034067,2]
[418988417,1774713069486,-500.0,0.00034089,2]
[418988418,1774713069495,-500.0,0.00034089,2]
[418988419,1774713069505,-392.0,0.00034089,2]
[418988420,1774713069514,-1750.0,0.00034206,2]
[418988421,1774713069524,-1750.0,0.00034206,2]
[418988422,1774713069533,-1736.0,0.00034206,2]
[418988423,1774713069543,-500.0,0.00034313,2]
[418988424,1774713069553,-500.0,0.00034313,2]
[418988425,1774713069563,-385.0,0.00034313,2]
[418988426,1774713069572,-1339.61,0.00034319,2]
[418988427,1774713069582,-177.0,0.00034441,30]
[418988428,1774713069592,-229.0,0.00034441,30]
[418988429,1774713069604,-155.0,0.00034441,30]
[418988430,1774713069613,-272.0,0.00034441,30]
[418988431,1774713069622,-397.0,0.00034441,30]
[418988432,1774713069633,-1747.27974505,0.0003449,2]
[418988433,1774713069643,-250.0,0.00034492,2]
[418988434,1774713069653,-151.0,0.00034497,14]
[418988435,1774713069663,-300.0,0.00034499,10]
[418988436,1774713069674,-300.0,0.00034499,10]
[418988437,1774713069683,-300.0,0.00034499,10]
[418988438,1774713069692,-300.0,0.00034499,10]
[418988439,1774713069702,-300.0,0.00034499,10]
[418988440,1774713069711,-300.0,0.00034499,10]
[418988441,1774713069721,-300.0,0.00034499,10]
[418988442,1774713069730,-300.0,0.00034499,10]
[418988443,1774713069739,-300.0,0.00034499,10]
[418988444,1774713069750,-300.0,0.00034499,10]
[418988445,1774713069759,-300.0,0.00034499,10]
[418988446,1774713069768,-300.0,0.00034499,10]
[418988447,1774713069779,-300.0,0.00034499,10]
[418988448,1774713069788,-300.0,0.00034499,10]
[418988449,1774713069798,-300.0,0.00034499,10]
[418988450,1774713069807,-300.0,0.00034499,10]
[418988451,1774713069817,-300.0,0.00034499,10]
[418988452,1774713069827,-300.0,0.00034499,10]
[418988453,1774713069837,-447497.28,0.000345,7]
[418988454,1774713069847,-151.0,0.000345,7]
[418988455,1774713069857,-154.786488,0.000345,7]
[418988456,1774713069867,-151.0,0.000345,7]
[418988457,1774713069877,-151.0,0.000345,7]
[418988458,1774713069887,-207.98764,0.000345,7]
[418988459,1774713069897,-207.98764,0.000345,7]
[418988460,1774713069907,-207.98764,0.000345,7]
[418988461,1774713069918,-207.98764,0.000345,7]
[418988462,1774713069928,-151.0,0.000345,7]
[418988463,1774713069939,-151.0,0.000345,7]
[418988464,1774713069950,-196.184062,0.000345,7]
[418988465,1774713069960,-196.184062,0.000345,7]
[418988466,1774713069969,-196.184062,0.000345,7]
[418988467,1774713069979,-196.184062,0.000345,7]
[418988468,1774713069988,-300.0,0.000345,10]
[418988469,1774713069998,-300.0,0.000345,10]
[418988470,1774713070008,-300.0,0.000345,10]
[418988471,1774713070018,-300.0,0.000345,10]
[418988472,1774713070027,-300.0,0.000345,10]
[418988473,1774713070037,-300.0,0.000345,10]
[418988474,1774713070047,-300.0,0.000345,10]
[418988475,1774713070057,-300.0,0.000345,10]
[418988476,1774713070067,-300.0,0.000345,10]
[418988477,1774713070076,-300.0,0.000345,10]
[418988478,1774713070086,-300.0,0.000345,10]
[418988479,1774713070096,-300.0,0.000345,10]
[418988480,1774713070106,-300.0,0.000345,10]
[418988481,1774713070116,-300.0,0.000345,10]
[418988482,1774713070125,-300.0,0.000345,10]
[418988483,1774713070135,-300.0,0.000345,10]
[418988484,1774713070145,-300.0,0.000345,10]
[418988485,1774713070154,-151.54822769,0.000345,10]
[418988486,1774713070164,-300.0,0.0003452,10]
[418988487,1774713070173,-300.0,0.0003452,10]
[418988488,1774713070183,-300.0,0.0003452,10]
[418988489,1774713070192,-300.0,0.0003452,10]
[418988490,1774713070202,-300.0,0.0003452,10]
[418988491,1774713070211,-300.0,0.0003452,10]
[418988492,1774713070222,-300.0,0.0003452,10]
[418988493,1774713070232,-300.0,0.0003452,10]
[418988494,1774713070242,-300.0,0.0003452,10]
[418988495,1774713070252,-300.0,0.0003452,10]
[418988496,1774713070262,-300.0,0.0003452,10]
[418988497,1774713070271,-300.0,0.0003452,10]
[418988498,1774713070280,-300.0,0.0003452,10]
[418988499,1774713070290,-300.0,0.0003452,10]